fUST/lending_fUST_20240616
["ID","MTS","AMOUNT","RATE_DAILY","PERIOD"]
[329603290,1718500249740,-500.0,0.00016854,2]
[329603291,1718500249763,-500.0,0.00016854,2]
[329603293,1718500249779,-500.0,0.00016854,2]
[329603295,1718500249795,-500.0,0.00016854,2]
[329603297,1718500249825,-500.0,0.00016854,2]
[329603299,1718500249860,-500.0,0.00016854,2]
[329603301,1718500249881,-500.0,0.00016854,2]
[329603303,1718500249902,-500.0,0.00016854,2]
[329603305,1718500249924,-244.88562426,0.00016854,2]
[329603306,1718500249941,-423.179461,0.00016854,2]
[329603308,1718500249974,-423.179461,0.00016854,2]
[329603310,1718500249998,-500.0,0.00016854,2]
[329603313,1718500250040,-423.179461,0.00016854,2]
[329603315,1718500250052,-423.179461,0.00016854,2]
[329603317,1718500250067,-500.0,0.00016854,2]
[329603319,1718500250079,-1000.0,0.00016854,2]
[329603321,1718500250113,-500.0,0.00016854,2]
[329603323,1718500250147,-1000.0,0.00016854,2]
[329603325,1718500250167,-1000.0,0.00016854,2]
[329603327,1718500250180,-1000.0,0.00016854,2]
[329603329,1718500250191,-1000.0,0.00016854,2]
[329603331,1718500250208,-1000.0,0.00016854,2]
[329603333,1718500250241,-1000.0,0.00016854,2]
[329603335,1718500250254,-1000.0,0.00016854,2]
[329603337,1718500250266,-1023.854944,0.00016854,2]
[329603339,1718500250297,-252.44033821,0.00016854,2]
[329603344,1718500250376,-247.55966179,0.00016854,2]
[329603346,1718500250388,-303.08246123,0.00016854,2]
[329603351,1718500250461,-43.53881824,0.00016854,2]
[329603353,1718500250473,-728.38,0.00016854,2]
[329603356,1718500250492,-364.20641032,0.00016854,2]
[329603358,1718500250517,-305.78318971,0.00016854,2]
[329603360,1718500250539,-500.0,0.00016854,2]
[329603362,1718500250565,-341.33,0.00016854,2]
[329603363,1718500250576,-500.0,0.00016854,2]
[329603365,1718500250587,-1387.41,0.00016854,2]
[329603368,1718500250607,-500.0,0.00016854,2]
[329603370,1718500250640,-500.0,0.00016854,2]
[329603372,1718500250650,-500.0,0.00016854,2]
[329603374,1718500250669,-518.97,0.00016854,2]
[329603376,1718500250692,-500.0,0.00016854,2]
[329603378,1718500250705,-889.72,0.00016854,2]
[329603380,1718500250746,-500.0,0.00016855,2]
[329603382,1718500250765,-501.17999592,0.00016855,2]
[329603384,1718500250778,-335.30690628,0.00016855,2]
[329603385,1718500250792,-151.0,0.00016855,2]
[329603387,1718500250804,-513.73701891,0.00016855,2]
[329603389,1718500250818,-500.0,0.00016855,2]
[329603391,1718500250835,-158.956044,0.00016855,2]
[329603393,1718500250846,-500.0,0.00016855,2]
[329603395,1718500250877,-502.12485175,0.00016855,2]
[329603397,1718500250895,-151.0,0.00016855,2]
[329603399,1718500250924,-151.0,0.00016855,2]
[329603401,1718500250940,-151.0,0.00016855,2]
[329603403,1718500250958,-151.0,0.00016855,2]
[329603405,1718500250970,-550.59009883,0.00016855,2]
[329603407,1718500250996,-151.0,0.00016855,2]
[329603408,1718500251006,-151.0,0.00016855,2]
[329603410,1718500251017,-500.0,0.00016855,2]
[329603411,1718500251027,-208.681369,0.00016855,2]
[329603413,1718500251044,-500.0,0.00016855,2]
[329603415,1718500251074,-569.78,0.00016855,2]
[329603417,1718500251094,-500.0,0.00016855,2]
[329603419,1718500251134,-151.0,0.00016855,2]
[329603421,1718500251147,-151.0,0.00016855,2]
[329603423,1718500251159,-151.0,0.00016855,2]
[329603425,1718500251190,-151.0,0.00016855,2]
[329603427,1718500251205,-500.0,0.00016855,2]
[329603429,1718500251229,-500.0,0.00016855,2]
[329603431,1718500251264,-500.0,0.00016855,2]
[329603433,1718500251307,-500.0,0.00016855,2]
[329603434,1718500251323,-399.53,0.00016855,2]
[329603436,1718500251345,-636.91946243,0.00016855,2]
[329603438,1718500251368,-500.0,0.00016855,2]
[329603440,1718500251379,-500.0,0.00016855,2]
[329603442,1718500251408,-500.0,0.00016855,2]
[329603444,1718500251423,-500.0,0.00016855,2]
[329603446,1718500251448,-423.179461,0.00016855,2]
[329603448,1718500251461,-423.179461,0.00016855,2]
[329603450,1718500251473,-423.179461,0.00016855,2]
[329603452,1718500251485,-500.0,0.00016855,2]
[329603454,1718500251521,-423.179461,0.00016855,2]
[329603456,1718500251562,-423.179461,0.00016855,2]
[329603458,1718500251573,-423.179461,0.00016855,2]
[329603460,1718500251589,-500.0,0.00016855,2]
[329603462,1718500251600,-500.0,0.00016855,2]
[329603465,1718500251619,-721.70560726,0.00016858,2]
[329603466,1718500251632,-423.179461,0.00016859,2]
[329603468,1718500251644,-423.179461,0.00016859,2]
[329603470,1718500251656,-21519.18350615,0.0001686,2]
[329603472,1718500251669,-151.0,0.0001686,2]
[329603474,1718500251683,-423.179461,0.0001686,2]
[329603476,1718500251693,-423.179461,0.0001686,2]
[329603478,1718500251704,-620.00000001,0.0001689,2]
[329603480,1718500251720,-500.0,0.00017127,2]
[329603482,1718500251732,-500.0,0.00017127,2]
[329603485,1718500251773,-624.62,0.00017127,2]
[329603487,1718500251793,-500.0,0.00017127,2]
[329603488,1718500251826,-180.62945946,0.00017127,2]
[329603490,1718500251848,-2910.17,0.00017127,2]
[329603492,1718500251868,-500.0,0.00017128,2]
[329603495,1718500251923,-500.0,0.00017128,2]
[329603497,1718500251938,-500.0,0.00017128,2]
[329603499,1718500251970,-505.65299135,0.00017128,2]
[329603501,1718500252000,-500.0,0.00017128,2]
[329603504,1718500252017,-151.0,0.00017128,2]
[329603506,1718500252040,-221.852352,0.00017128,2]
[329603508,1718500252052,-638.32,0.00017128,2]
[329603510,1718500252072,-207.00312676,0.00017128,2]
[329603512,1718500252085,-1706.16,0.00017128,2]
[329603514,1718500252117,-500.0,0.00017128,2]
[329603516,1718500252160,-881.01,0.00017128,2]
[329603518,1718500252171,-1151.98,0.00017128,2]
[329603520,1718500252185,-500.0,0.00017128,2]
[329603522,1718500252197,-658.68,0.00017128,2]
[329603524,1718500252215,-943.05,0.00017128,2]
[329603526,1718500252230,-1236.05105612,0.00017128,2]
[329608795,1718500431328,3000.0,0.00023,30]
[329608813,1718501026395,3000.0,0.00023,30]
[329608860,1718501743660,3000.0,0.00023,30]
[329608872,1718502022880,1212.27880837,0.00025,60]
[329608873,1718502113456,5270.71057561,0.00010783,2]
[329608875,1718502234127,5229.99408526,0.00011179,2]
[329608876,1718502235200,5229.99408526,0.00011454,2]
[329608878,1718502242735,3000.0,0.00023,30]
[329608879,1718502359138,5229.99408526,0.00011593,2]
[329608880,1718502488288,5229.99408527,0.00011911,2]
[329608883,1718502608845,5229.99408527,0.00012133,2]
[329609889,1718502728958,5229.99408527,0.00012551,2]
[329609890,1718502831227,3000.0,0.00023,30]
[329609891,1718502858829,5229.99408527,0.0001281,2]
[329609892,1718503032396,5229.99408527,0.00013067,2]
[329609895,1718503156661,5229.99408527,0.00013353,2]
[329609896,1718503284126,5229.99408527,0.00013453,2]
[329609897,1718503431346,5229.9940852,0.00013877,2]
[329609898,1718503446062,3000.0,0.00023,30]
[329609899,1718503554769,2957.88761271,0.00014157,2]
[329610004,1718503834525,-892.41994913,0.0001448,2]
[329610008,1718503834563,-848.54825264,0.0001448,2]
[329610010,1718503834577,-183.514744,0.0001448,2]
[329610011,1718503834593,-552.03605358,0.00014481,2]
[329610026,1718503834840,-1586.21617874,0.00014481,2]
[329610029,1718503834889,-412.60757393,0.00014481,2]
[329610684,1718503854065,-300.0,0.00014481,2]
[329610907,1718503857794,664.75,0.00010959,2]
[329612171,1718503934765,1582.16020003,0.0001,2]
[329612172,1718504012635,318.01,0.00010959,2]
[329612173,1718504023256,265.01,0.00010959,2]
[329612174,1718504033825,220.84,0.00010959,2]
[329612175,1718504035249,3000.0,0.00023,30]
[329612176,1718504044355,184.03,0.00010959,2]
[329612177,1718504055265,153.36,0.00010959,2]
[329612178,1718504065685,766.83,0.00010959,2]
[329612179,1718504096724,227.15,0.00010959,2]
[329612180,1718504128008,347.03,0.00010959,2]
[329612181,1718504148789,788.75,0.00010959,2]
[329612182,1718504424461,5270.71057561,0.00013989,2]
[329612184,1718504628464,3000.0,0.00023,30]
[329612185,1718504654907,151.0,0.0001,2]
[329612212,1718505035418,-386.01217285,0.00014082,2]
[329612350,1718505050273,-679.23975741,0.00014082,2]
[329612351,1718505050289,-859.23101551,0.00014082,2]
[329612352,1718505050301,-5270.71057561,0.00014083,2]
[329612353,1718505050313,-1175.94663239,0.00015343,2]
[329612408,1718505078005,216.49679584,9.999e-05,2]
[329612409,1718505088443,155.02170304,9.999e-05,2]
[329612410,1718505101519,242.59644085,9.999e-05,2]
[329612411,1718505101630,1582.16020003,0.0001,2]
[329612412,1718505109257,155.02170304,9.999e-05,2]
[329612413,1718505121943,155.02170304,9.999e-05,2]
[329612415,1718505147530,928.20234735,9.999e-05,2]
[329612416,1718505196205,582.49603925,9.999e-05,2]
[329612417,1718505218000,156.32958621,9.999e-05,2]
[329612418,1718505226719,3000.0,0.00023,30]
[329612419,1718505238444,24900.0,0.00013592,2]
[329612421,1718505363741,502.893864,0.00013699,2]
[329612423,1718505824264,3000.0,0.00023,30]
[329612424,1718505926231,1425.0255577,0.00013566,2]
[329612425,1718505952837,251.446932,0.00013699,2]
[329612520,1718506240681,-1924.48294577,0.00014433,2]
[329612521,1718506240694,-1985.36774718,0.00014434,2]
[329612522,1718506240710,-300.0,0.00014434,2]
[329612523,1718506240740,-7925.65869883,0.00014555,2]
[329612524,1718506240752,-151.0,0.00014555,2]
[329612525,1718506240766,-151.0,0.00014555,2]
[329612526,1718506240796,-199.00257871,0.00014567,2]
[329612527,1718506240817,-24408.07911767,0.00014572,2]
[329612528,1718506240860,-151.0,0.00014572,2]
[329612529,1718506240872,-151.0,0.00014572,2]
[329612530,1718506240897,-710.40534,0.00014572,2]
[329612531,1718506240910,-710.40534,0.00014572,2]
[329612532,1718506240927,-151.0,0.00014572,2]
[329612533,1718506240961,-151.0,0.00014572,2]
[329612534,1718506240986,-151.0,0.00014572,2]
[329612535,1718506241005,-151.0,0.00014572,2]
[329612536,1718506241018,-151.0,0.00014572,2]
[329612537,1718506241031,-151.0,0.00014572,2]
[329612538,1718506241072,-151.0,0.00014572,2]
[329612539,1718506241086,-151.0,0.00014572,2]
[329612540,1718506241113,-151.0,0.00014572,2]
[329612541,1718506241138,-151.0,0.00014572,2]
[329612542,1718506241182,-218.480857,0.00014572,2]
[329612543,1718506241198,-1469.04626054,0.00014672,2]
[329612544,1718506241214,-249.83674674,0.00014672,2]
[329612545,1718506241227,-155.50034566,0.00014672,2]
[329612546,1718506241280,-155.57558265,0.00014672,2]
[329612547,1718506241309,-155.02170304,0.00014672,2]
[329612548,1718506241329,-155.02170304,0.00014672,2]
[329612549,1718506241346,-189.15746404,0.00014672,2]
[329612550,1718506241360,-287.85085082,0.00014672,2]
[329612551,1718506241376,-156.55688392,0.00014672,2]
[329612552,1718506241395,-157.04638687,0.00014672,2]
[329612553,1718506241409,-151.0,0.00014672,2]
[329612554,1718506241425,-151.0,0.00014672,2]
[329612555,1718506241446,-151.0,0.00014672,2]
[329612556,1718506241466,-151.0,0.00014672,2]
[329612557,1718506241478,-151.0,0.00014672,2]
[329612558,1718506241489,-151.0,0.00014672,2]
[329612559,1718506241506,-151.0,0.00014672,2]
[329612560,1718506241521,-151.0,0.00014672,2]
[329612561,1718506241537,-151.0,0.00014672,2]
[329612562,1718506241568,-151.0,0.00014672,2]
[329612563,1718506241581,-710.40534,0.00014672,2]
[329612564,1718506241595,-710.40534,0.00014672,2]
[329612565,1718506241614,-710.40534,0.00014672,2]
[329612566,1718506241635,-710.40534,0.00014672,2]
[329612567,1718506241646,-710.40534,0.00014672,2]
[329612568,1718506241656,-710.40534,0.00014672,2]
[329612569,1718506241669,-710.40534,0.00014672,2]
[329612570,1718506241680,-710.40534,0.00014672,2]
[329612571,1718506241691,-710.40534,0.00014672,2]
[329612572,1718506241702,-710.40534,0.00014672,2]
[329612573,1718506241714,-710.40534,0.00014672,2]
[329612574,1718506241728,-710.40534,0.00014672,2]
[329612575,1718506241890,-710.40534,0.00014672,2]
[329612576,1718506241908,-710.40534,0.00014672,2]
[329612577,1718506241921,-224.278256,0.00014672,2]
[329612578,1718506241953,-151.0,0.00014672,2]
[329612579,1718506241972,-151.0,0.00014672,2]
[329612580,1718506241986,-151.0,0.00014672,2]
[329612581,1718506242009,-151.0,0.00014672,2]
[329612582,1718506242027,-765.94991988,0.00014673,2]
[329612583,1718506242045,-10595.21562588,0.00014673,2]
[329612584,1718506242057,-151.0,0.00014673,2]
[329612585,1718506242081,-151.0,0.00014673,2]
[329612586,1718506242094,-151.0,0.00014673,2]
[329612587,1718506242105,-258.649475,0.00014673,2]
[329612588,1718506242121,-710.40534,0.00014673,2]
[329612589,1718506242157,-710.40534,0.00014673,2]
[329612590,1718506242200,-710.40534,0.00014673,2]
[329612591,1718506242215,-710.405334,0.00014673,2]
[329612592,1718506242228,-950.99806298,0.00015,2]
[329612593,1718506242240,-151.0,0.00015,2]
[329612594,1718506242258,-5270.71057561,0.00015096,2]
[329612595,1718506242292,-151.0,0.00015735,2]
[329612596,1718506242313,-153.0,0.000158,2]
[329612597,1718506242336,-299.0,0.00015877,2]
[329612598,1718506242347,-154.0213146,0.000159,2]
[329612599,1718506242369,-153.7275268,0.00015952,2]
[329612600,1718506242389,-2157.69787551,0.00016,2]
[329612601,1718506242406,-153.0,0.00016,2]
[329612602,1718506242449,-1485.05134093,0.00016,2]
[329612603,1718506242462,-151.087,0.00016071,2]
[329612604,1718506242473,-606.0,0.00016163,2]
[329612605,1718506242485,-249.115912,0.00016164,2]
[329612606,1718506242514,-394.41172031,0.000164,2]
[329612607,1718506242525,-508.29513813,0.00016438,2]
[329612608,1718506242537,-500.0,0.00016438,2]
[329612609,1718506242549,-707.23,0.00016438,2]
[329612610,1718506242561,-500.0,0.00016438,2]
[329612611,1718506242574,-2041.0,0.00016438,2]
[329612612,1718506242590,-1563.36,0.00016438,2]
[329612613,1718506242605,-500.0,0.00016438,2]
[329612614,1718506242619,-500.0,0.00016438,2]
[329612615,1718506242629,-1073.85,0.00016438,2]
[329612616,1718506242640,-500.0,0.00016438,2]
[329612617,1718506242652,-2954.08,0.00016438,2]
[329612618,1718506242663,-1209.09,0.00016438,2]
[329612619,1718506242676,-500.0,0.00016438,2]
[329612620,1718506242687,-1526.37,0.00016438,2]
[329612621,1718506242698,-1957.11,0.00016438,2]
[329612622,1718506242712,-500.0,0.00016438,2]
[329612623,1718506242739,-550.04,0.00016438,2]
[329612624,1718506242759,-500.0,0.00016438,2]
[329612625,1718506242777,-500.0,0.00016438,2]
[329612626,1718506242800,-500.0,0.00016438,2]
[329612627,1718506242834,-500.0,0.00016438,2]
[329612628,1718506242848,-4205.95,0.00016438,2]
[329612629,1718506242860,-900.43,0.00016438,2]
[329612630,1718506242871,-500.0,0.00016438,2]
[329612631,1718506242889,-500.0,0.00016438,2]
[329612632,1718506242901,-167.72392705,0.00016438,2]
[329612633,1718506242913,-570.54424538,0.00016438,2]
[329612634,1718506242948,-500.0,0.00016438,2]
[329612635,1718506242965,-500.0,0.00016438,2]
[329612636,1718506242981,-500.0,0.00016438,2]
[329612637,1718506243006,-500.0,0.00016438,2]
[329612638,1718506243029,-1248.12,0.00016438,2]
[329612639,1718506243045,-500.0,0.00016438,2]
[329612641,1718506243063,-500.0,0.00016438,2]
[329612644,1718506243098,-1320.68,0.00016438,2]
[329612646,1718506243119,-228.0,0.00016438,2]
[329612647,1718506243147,-2072.14,0.00016438,2]
[329612649,1718506243166,-3915.95,0.00016438,2]
[329612651,1718506243178,-1277.128991,0.00016438,2]
[329612652,1718506243221,-1277.128991,0.00016438,2]
[329612653,1718506243236,-1277.128991,0.00016438,2]
[329612654,1718506243248,-1277.128991,0.00016438,2]
[329612655,1718506243259,-1277.128991,0.00016438,2]
[329612656,1718506243284,-1277.128991,0.00016438,2]
[329612657,1718506243299,-1277.128991,0.00016438,2]
[329612659,1718506243323,-1277.128991,0.00016438,2]
[329612660,1718506243338,-1277.128991,0.00016438,2]
[329612661,1718506243351,-1277.128991,0.00016438,2]
[329612662,1718506243388,-1277.128991,0.00016438,2]
[329612663,1718506243406,-1277.128991,0.00016438,2]
[329612664,1718506243420,-1277.128991,0.00016438,2]
[329612665,1718506243436,-1277.128991,0.00016438,2]
[329612666,1718506243449,-1277.128991,0.00016438,2]
[329612667,1718506243462,-1277.128991,0.00016438,2]
[329612668,1718506243474,-1277.128991,0.00016438,2]
[329612669,1718506243491,-1277.128991,0.00016438,2]
[329612670,1718506243502,-1277.128991,0.00016438,2]
[329612671,1718506243521,-1277.12899,0.00016438,2]
[329612672,1718506243533,-275.82048278,0.000165,2]
[329612673,1718506243550,-228.0,0.00016563,2]
[329612674,1718506243593,-1770.27596978,0.00016612,2]
[329612675,1718506243629,-1308.2328932,0.00016653,2]
[329612676,1718506243652,-155.87285092,0.00016666,2]
[329612677,1718506243698,-27184.99273099,0.00016667,15]
[329612679,1718506243711,-186.07126505,0.00016667,2]
[329612680,1718506243757,-46809.27488426,0.00016667,2]
[329612681,1718506243804,-2490.51992328,0.00016667,2]
[329612682,1718506243829,-265.3521047,0.00016668,2]
[329612683,1718506243844,-1655.84409391,0.00016668,2]
[329612684,1718506243858,-2654.37372726,0.00016668,2]
[329612685,1718506243872,-300.94891484,0.00016668,2]
[329612686,1718506243900,-616.27615321,0.00016668,2]
[329612687,1718506243925,-195.94153075,0.00016668,2]
[329612688,1718506243984,-1444.18029023,0.00016668,2]
[329612689,1718506244004,-532.93518362,0.00016668,2]
[329612690,1718506244015,-1348.23505195,0.00016668,2]
[329612691,1718506244042,-727.60317503,0.00016668,2]
[329612693,1718506244054,-233.68043666,0.00016668,2]
[329612695,1718506244077,-555.46244672,0.00016668,2]
[329612696,1718506244100,-156.51056619,0.00016668,2]
[329612697,1718506244112,-283.5433345,0.00016668,2]
[329612698,1718506244134,-562.63430943,0.00016668,2]
[329612699,1718506244147,-155.42101017,0.00016668,2]
[329612700,1718506244195,-2426.38808075,0.00016669,2]
[329612701,1718506244212,-1075.44097696,0.00016669,2]
[329612702,1718506244236,-1104.26233714,0.0001667,2]
[329612703,1718506244252,-40168.90542641,0.0001667,2]
[329612704,1718506244281,-4210.7355302,0.0001667,2]
[329612705,1718506244300,-250.60830736,0.0001667,2]
[329612706,1718506244313,-217.29416193,0.0001667,2]
[329612707,1718506244325,-1895.08865633,0.0001667,2]
[329612708,1718506244337,-182.66391046,0.0001667,2]
[329612709,1718506244353,-518.38841196,0.0001667,2]
[329612710,1718506244366,-505.61082209,0.0001667,2]
[329612711,1718506244378,-504.78967959,0.0001667,2]
[329612712,1718506244398,-500.0,0.0001667,2]
[329612713,1718506244420,-503.05659913,0.0001667,2]
[329612714,1718506244454,-504.31634776,0.0001667,2]
[329612715,1718506244492,-504.09214365,0.0001667,2]
[329612716,1718506244507,-507.2477512,0.0001667,2]
[329612717,1718506244519,-502.55644103,0.0001667,2]
[329612718,1718506244535,-531.76470945,0.0001667,2]
[329612719,1718506244548,-501.54393603,0.0001667,2]
[329612720,1718506244561,-500.0,0.0001667,2]
[329612721,1718506244577,-506.45768503,0.0001667,2]
[329612722,1718506244591,-500.0,0.0001667,2]
[329612723,1718506244608,-500.0,0.0001667,2]
[329612724,1718506244623,-505.39181604,0.0001667,2]
[329612725,1718506244652,-520.6453734,0.0001667,2]
[329612726,1718506244667,-500.0,0.0001667,2]
[329612727,1718506244689,-500.0,0.0001667,2]
[329612728,1718506244735,-500.0,0.0001667,2]
[329612729,1718506244755,-500.0,0.0001667,2]
[329612730,1718506244778,-500.0,0.0001667,2]
[329612731,1718506244807,-226.10811885,0.0001667,2]
[329612732,1718506244827,-500.0,0.0001667,2]
[329612733,1718506244842,-398.18150194,0.0001667,2]
[329612734,1718506244853,-518.89788743,0.0001667,2]
[329612735,1718506244872,-500.0,0.0001667,2]
[329612736,1718506244890,-500.0,0.0001667,2]
[329612737,1718506244916,-512.37174693,0.0001667,2]
[329612738,1718506244971,-546.21,0.0001667,2]
[329612739,1718506244983,-375.35373816,0.0001667,2]
[329612740,1718506244994,-531.92595039,0.00016672,2]
[329612741,1718506245012,-152.20264006,0.00016672,2]
[329612742,1718506245025,-507.60372563,0.00016672,2]
[329612743,1718506245038,-497.30310668,0.00016672,2]
[329612745,1718506245057,-500.0,0.00016672,2]
[329612746,1718506245085,-228.0,0.00016687,2]
[329612747,1718506245103,-500.0,0.00016712,2]
[329612748,1718506245134,-707.23,0.00016712,2]
[329612749,1718506245160,-500.0,0.00016712,2]
[329612750,1718506245180,-2041.0,0.00016712,2]
[329612751,1718506245223,-1563.36,0.00016712,2]
[329612752,1718506245269,-533.05214142,0.00016712,2]
[329612753,1718506245289,-263.07424187,0.00016712,2]
[329612754,1718506245308,-1073.85,0.00016712,2]
[329612755,1718506245326,-500.0,0.00016712,2]
[329612756,1718506245342,-2954.08,0.00016712,2]
[329612757,1718506245359,-1209.09,0.00016712,2]
[329612758,1718506245380,-500.0,0.00016712,2]
[329612759,1718506245402,-1526.37,0.00016712,2]
[329612760,1718506245425,-1957.11,0.00016712,2]
[329612761,1718506245456,-500.0,0.00016712,2]
[329612762,1718506245477,-550.04,0.00016712,2]
[329612763,1718506245493,-429.90339279,0.00016712,2]
[329612765,1718506245514,-500.0,0.00016712,2]
[329612766,1718506245527,-500.0,0.00016712,2]
[329612767,1718506245539,-4205.95,0.00016712,2]
[329612768,1718506245563,-500.0,0.00016712,2]
[329612769,1718506245589,-900.43,0.00016712,2]
[329612770,1718506245612,-239.53330149,0.00016712,2]
[329612771,1718506245637,-500.0,0.00016712,2]
[329612772,1718506245657,-500.0,0.00016712,2]
[329612773,1718506245710,-500.0,0.00016712,2]
[329612775,1718506245733,-1248.12,0.00016712,2]
[329612777,1718506245751,-500.0,0.00016712,2]
[329612778,1718506245770,-500.0,0.00016712,2]
[329612779,1718506245794,-1320.68,0.00016712,2]
[329612781,1718506245824,-2072.14,0.00016712,2]
[329612783,1718506245838,-3915.95,0.00016712,2]
[329612785,1718506245851,-153.5596307,0.00016712,2]
[329612786,1718506245881,-154.4599378,0.00016712,2]
[329612789,1718506245940,-200.6335229,0.00016712,2]
[329612791,1718506245960,-456.6691874,0.00016712,2]
[329612793,1718506245979,-500.0,0.00016766,2]
[329612795,1718506246004,-228.0,0.00016812,2]
[329612796,1718506246026,-738.0,0.00016819,2]
[329612798,1718506246044,-738.0,0.00016819,2]
[329612800,1718506246057,-738.0,0.00016819,2]
[329612802,1718506246083,-738.0,0.00016819,2]
[329612804,1718506246099,-738.0,0.00016819,2]
[329612807,1718506246121,-738.0,0.00016819,2]
[329612809,1718506246158,-738.0,0.00016819,2]
[329612811,1718506246174,-738.0,0.00016819,2]
[329612812,1718506246193,-738.0,0.00016819,2]
[329612814,1718506246215,-738.0,0.00016819,2]
[329612816,1718506246246,-738.0,0.00016819,2]
[329612817,1718506246268,-738.0,0.00016819,2]
[329612819,1718506246280,-738.0,0.00016819,2]
[329612822,1718506246297,-738.0,0.00016819,2]
[329612824,1718506246374,-738.0,0.00016819,2]
[329612826,1718506246429,-738.0,0.00016819,2]
[329612827,1718506246465,-738.0,0.00016819,2]
[329612829,1718506246478,-738.0,0.00016819,2]
[329612831,1718506246489,-738.0,0.00016819,2]
[329612833,1718506246519,-738.0,0.00016819,2]
[329612835,1718506246532,-738.0,0.00016819,2]
[329612837,1718506246545,-738.0,0.00016819,2]
[329612838,1718506246563,-738.0,0.00016819,2]
[329612840,1718506246589,-738.0,0.00016819,2]
[329612842,1718506246603,-738.0,0.00016819,2]
[329612844,1718506246614,-738.0,0.00016819,2]
[329612847,1718506246640,-738.0,0.00016819,2]
[329612849,1718506246667,-738.0,0.00016823,2]
[329612850,1718506246679,-738.0,0.00016823,2]
[329612853,1718506246717,-738.0,0.00016823,2]
[329612855,1718506246730,-738.0,0.00016823,2]
[329612857,1718506246744,-738.0,0.00016823,2]
[329612859,1718506246760,-738.0,0.00016823,2]
[329612860,1718506246774,-738.0,0.00016823,2]
[329612862,1718506246801,-738.0,0.00016823,2]
[329612864,1718506246818,-738.0,0.00016823,2]
[329612867,1718506246834,-738.0,0.00016823,2]
[329612869,1718506246849,-738.0,0.00016823,2]
[329612871,1718506246867,-738.0,0.00016823,2]
[329612873,1718506246891,-738.0,0.00016823,2]
[329612875,1718506246907,-738.0,0.00016823,2]
[329612877,1718506246934,-738.0,0.00016823,2]
[329612880,1718506246973,-738.0,0.00016823,2]
[329612881,1718506246987,-738.0,0.00016823,2]
[329612883,1718506246998,-738.0,0.00016823,2]
[329612886,1718506247042,-738.0,0.00016823,2]
[329612889,1718506247077,-738.0,0.00016823,2]
[329612892,1718506247112,-738.0,0.00016823,2]
[329612894,1718506247160,-738.0,0.00016823,2]
[329612896,1718506247199,-738.0,0.00016823,2]
[329612898,1718506247214,-738.0,0.00016823,2]
[329612900,1718506247248,-738.0,0.00016823,2]
[329612902,1718506247304,-738.0,0.00016823,2]
[329612904,1718506247320,-738.0,0.00016823,2]
[329612906,1718506247341,-738.0,0.00016823,2]
[329612908,1718506247365,-738.0,0.00016823,2]
[329612910,1718506247379,-738.0,0.00016823,2]
[329612912,1718506247390,-738.0,0.00016823,2]
[329612914,1718506247411,-738.0,0.00016823,2]
[329612916,1718506247433,-738.0,0.00016823,2]
[329612918,1718506247461,-738.0,0.00016823,2]
[329612920,1718506247477,-738.0,0.00016823,2]
[329612922,1718506247488,-738.0,0.00016823,2]
[329612924,1718506247509,-738.0,0.00016823,2]
[329612927,1718506247536,-738.0,0.00016823,2]
[329612928,1718506247551,-738.0,0.00016823,2]
[329612930,1718506247564,-738.0,0.00016823,2]